{"text_format":"1","workbook":"xlsx","n_sheets":12,"sheets":["Sheet1","Order","Adjectives","Nouns","Verbs","Prepositions","Pronouns","Lists","Adverbs","Fillers","Plural","Libs"],"not_rendered":{"charts":0,"images":0,"macros":1,"external_links":0,"defined_names":0,"comments":0,"pivot_tables":0},"unopened":[],"bounds":{"document_bytes":16777216,"sheet_cells":100000,"rows_first":2000,"rows_last":500,"rows_between":2000,"halvings":0,"cell_chars":16384,"cell_head_chars":4096},"cells_cut":0,"cells_raw":0,"read":"whole","date_system":"1900"}

{"sheet":"Sheet1","index":0,"n_rows":2,"n_cols":9,"rows_kept":2,"cut":false,"hidden":false,"merged":[]}
[]
[null,"clumsy","day","hopes to","lightly","ascertain",null,"fierce","doll"]

{"sheet":"Order","index":1,"n_rows":0,"n_cols":0,"rows_kept":0,"cut":false,"hidden":false,"merged":[]}

{"sheet":"Adjectives","index":2,"n_rows":26,"n_cols":11,"rows_kept":26,"cut":false,"hidden":false,"merged":[]}
["Appearance Adjectives","Color Adjectives","Condition Adjectives","Feelings (Bad) Adjectives","Feelings (Good) Adjectives","Shape Adjectives","Size Adjectives","Sound Adjectives","Time Adjectives","Taste/Touch Adjectives","Touch Adjectives"]
[{"$f":"COUNTIF(A3:A24,\"<>\"&A25)","v":17},{"$f":"COUNTIF(B3:B26,\"<>\"&B27)","v":9},20,20,20,17,21,{"$f":"COUNTIF(H3:H26,\"<>\"&H27)","v":14},15,24,23]
["adorable","red","alive","angry","agreeable","broad","big","cooing","ancient","bitter","boiling"]
["beautiful","orange","better","bewildered","brave","chubby","colossal","deafening","brief","delicious","breeze"]
["clean","yellow","careful","clumsy","calm","crooked","fat","faint","early","fresh","broken"]
["drab","green","clever","defeated","delightful","curved","gigantic","hissing","fast","greasy","bumpy"]
["elegant","blue","dead","embarrassed","eager","deep","great","loud","late","juicy","chilly"]
["fancy","purple","easy","fierce","faithful","flat","huge","melodic","long","hot","cold"]
["glamorous","gray","famous","grumpy","gentle","high","immense","noisy","modern","icy","cool"]
["handsome","black","gifted","helpless","happy","hollow","large","purring","old","loose","creepy"]
["long","white","helpful","itchy","jolly","low","little","quiet","old-fashioned","melted","crooked"]
["magnificent",null,"important","jealous","kind","narrow","mammoth","raspy","quick","nutritious","cuddly"]
["old-fashioned",null,"inexpensive","lazy","lively","round","massive","screeching","rapid","prickly","curly"]
["plain",null,"mushy","mysterious","nice","shallow","miniature","thundering","short","rainy","damaged"]
["quaint",null,"odd","nervous","obedient","skinny","petite","voiceless","slow","rotten","damp"]
["sparkling",null,"powerful","obnoxious","proud","square","puny","whispering","swift","salty","dirty"]
["ugliest",null,"rich","panicky","relieved","steep","scrawny",null,"young","sticky","dry"]
["unsightly",null,"shy","repulsive","silly","straight","short",null,null,"strong","dusty"]
["wide-eyed",null,"tender","scary","thankful","wide.","small",null,null,"sweet","filthy"]
[null,null,"uninterested","thoughtless","victorious",null,"tall",null,null,"tart","flaky"]
[null,null,"vast","uptight","witty",null,"teeny",null,null,"tasteless","fluffy"]
[null,null,"wrong.","worried","zealous",null,"teeny-tiny",null,null,"uneven","freezing"]
[null,null,null,null,null,null,"tiny",null,null,"weak","hot"]
[null,null,null,null,null,null,null,null,null,"wet","warm"]
[null,null,null,null,null,null,null,null,null,"wooden","wet"]
[null,null,null,null,null,null,null,null,null,"yummy"]

{"sheet":"Nouns","index":3,"n_rows":92,"n_cols":6,"rows_kept":92,"cut":false,"hidden":false,"merged":[]}
["Kindergarten","1st Grade","2nd Grade","3rd Grade","4th Grade","5th Grade"]
[{"$f":"COUNTIF(A3:A94,\"<>\"&A95)","v":42},{"$f":"COUNTIF(B3:B95,\"<>\"&B96)","v":90},{"$f":"COUNTIF(C3:C95,\"<>\"&C96)","v":90},{"$f":"COUNTIF(D3:D95,\"<>\"&D96)","v":62},{"$f":"COUNTIF(E3:E95,\"<>\"&E96)","v":83},{"$f":"COUNTIF(F3:F95,\"<>\"&F96)","v":86}]
["ball","apple","alarm","actor","advice","able"]
["bat","arm","animal","airplane","anger","achieve"]
["bed","banana","aunt","airport","answer","acoustics"]
["book","bike","bait","army","apple","action"]
["boy","bird","balloon","baseball","arithmetic","activity"]
["bun","book","bath","beef","badge","aftermath"]
["can","chin","bead","birthday","basket","afternoon"]
["cake","clam","beam","boy","basketball","afterthought"]
["day","class","bean","brush","battle","apparel"]
["car","clover","bedroom","bushes","beast","appliance"]
["ball","club","boot","butter","beetle","beginner"]
["cow","corn","bread","cast","beggar","believe"]
["map","crayon","brick","cave","brain","bomb"]
["cup","crow","brother","cent","branch","border"]
["dad","crown","camp","cherries","bubble","boundary"]
["day","crowd","chicken","cherry","bucket","breakfast"]
["dog","crib","children","cobweb","cactus","cabbage"]
["doll","desk","crook","coil","cannon","cable"]
["dust","dime","deer","cracker","cattle","calculator"]
["fan","dirt","dock","dinner","celery","calendar"]
["feet","dress","doctor","eggnog","cellar","caption"]
["girl","fang","downtown","elbow","cloth","carpenter"]
["gun","field","drum","face","coach","cemetery"]
["hall","flag","dust","fireman","coast","channel"]
["hat","flower","eye","flavor","crate","circle"]
["hen","fog","family","gate","cream","creator"]
["jar","game","father","glove","daughter","creature"]
["kite","heat","fight","glue","donkey","education"]
["man","hill","flesh","goldfish","drug","faucet"]
["map","home","food","goose","earthquake","feather"]
["mom","horn","frog","grain","feast","friction"]
["pan","hose","goose","hair","fifth","fruit"]
["pet","joke","grade","haircut","finger","fuel"]
["pie","juice","grandfather","hobbies","flock","galley"]
["pig","kite","grandmother","holiday","frame","guide"]
["pot","lake","grape","hot","furniture","guitar"]
["rat","maid","grass","jellyfish","geese","health"]
["son","mask","hook","ladybug","ghost","heart"]
["sun","mice","horse","mailbox","giraffe","idea"]
["toe","milk","jail","number","governor","kitten"]
["tub","mint","jam","oatmeal","honey","laborer"]
["van","meal","kiss","pail","hope","language"]
[null,"meat","kitten","pancake","hydrant","lawyer"]
[null,"moon","light","pear","icicle","linen"]
[null,"mother","loaf","pest","income","locket"]
[null,"morning","lock","popcorn","island","lumber"]
[null,"name","lunch","queen","jeans","magic"]
[null,"nest","lunchroom","quicksand","judge","minister"]
[null,"nose","meal","quiet","lace","mitten"]
[null,"pear","mother","quilt","lamp","money"]
[null,"pen","notebook","rainstorm","lettuce","mountain"]
[null,"pencil","owl","scarecrow","marble","music"]
[null,"plant","pail","scarf","month","partner"]
[null,"rain","parent","stream","north","passenger"]
[null,"river","park","street","ocean","pickle"]
[null,"road","plot","sugar","patch","picture"]
[null,"rock","rabbit","throne","plane","plantation"]
[null,"room","rake","toothpaste","playground","plastic"]
[null,"rose","robin","twig","poison","pleasure"]
[null,"seed","sack","volleyball","riddle","pocket"]
[null,"shape","sail","wood","rifle","police"]
[null,"shoe","scale","wrench","scale","pollution"]
[null,"shop","sea",null,"seashore","railway"]
[null,"show","sister",null,"sheet","recess"]
[null,"sink","soap",null,"sidewalk","reward"]
[null,"snail","song",null,"skate","route"]
[null,"snake","spark",null,"slave","scene"]
[null,"snow","space",null,"sleet","scent"]
[null,"soda","spoon",null,"smoke","squirrel"]
[null,"sofa","spot",null,"stage","stranger"]
[null,"star","spy",null,"station","suit"]
[null,"step","summer",null,"thrill","sweater"]
[null,"stew","tiger",null,"throat","temper"]
[null,"stove","toad",null,"throne","territory"]
[null,"straw","town",null,"title","texture"]
[null,"string","trail",null,"toothbrush","thread"]
[null,"summer","tramp",null,"turkey","treatment"]
[null,"swing","tray",null,"underwear","veil"]
[null,"table","trick",null,"vacation","vein"]
[null,"tank","trip",null,"vegetable","volcano"]
[null,"team","uncle",null,"visitor","wealth"]
[null,"tent","vase",null,"voyage","weather"]
[null,"test","winter",null,"year","wilderness"]
[null,"toes","water",null,null,"wren"]
[null,"tree","week",null,null,"wrist"]
[null,"vest","wheel",null,null,"writer"]
[null,"water","wish"]
[null,"wing","wool"]
[null,"winter","yard"]
[null,"woman","zebra"]

{"sheet":"Verbs","index":4,"n_rows":169,"n_cols":24,"rows_kept":169,"cut":false,"hidden":false,"merged":[]}
["A","B","C","D","E","F","G","H","I","J","K","L","M","N","O","P","Q","R","S","T","U","V","W","X - Y - Z"]
[{"$f":"COUNTIF(A3:A200,\"<>\"&A201)","v":59},{"$f":"COUNTIF(B3:B200,\"<>\"&B201)","v":63},{"$f":"COUNTIF(C3:C200,\"<>\"&C201)","v":91},62,41,49,23,29,{"$f":"COUNTIF(I3:I200,\"<>\"&I201)","v":41},9,{"$f":"COUNTIF(K3:K199,\"<>\"&K200)","v":9},34,45,12,23,83,4,73,167,56,16,5,44,5]
["abide","back","calculate","dam","earn","face","gather","hammer","identify","jail","keep","label","maintain","nail","obey","pack","qualify","race","sack","tabulate","undergo","vanish","wail","x-ray"]
["accelerate","bake","call","damage","eat","facilitate","gaze","hand","ignore","jam","kick","land","make","name","object","paddle","question","radiate","sail","take","understand","verbalize","wait","yawn"]
["accept","balance","camp","dance","edit","fade","generate","handle","illustrate","jog","kill","last","man","navigate","observe","paint","queue","rain","satisfy","talk","undertake","verify","wake","yell"]
["accomplish","ban","care","dare","educate","fail","get","handwrite","imagine","join","kiss","laugh","manage","need","obtain","park","quit","raise","save","tame","undress","vex","walk","zip"]
["achieve","bang","carry","deal","eliminate","fancy","give","hang","implement","joke","kneel","launch","manipulate","negotiate","occur","part",null,"rank","saw","tap","unfasten","visit","wander","zoom"]
["acquire","bare","carve","decay","embarrass","fasten","glow","happen","impress","judge","knit","lay","manufacture","nest","offend","participate",null,"rate","say","target","unify",null,"want"]
["act","bat","cast","deceive","employ","fax","glue","harass","improve","juggle","knock","lead","map","nod","offer","pass",null,"reach","scare","taste","unite",null,"warm"]
["activate","bathe","catalog","decide","empty","fear","go","harm","improvise","jump","knot","lean","march","nominate","officiate","paste",null,"read","scatter","teach","unlock",null,"warn"]
["adapt","battle","catch","decorate","enact","feed","govern","hate","include","justify","know","leap","mark","normalize","open","pat",null,"realign","schedule","tear","unpack",null,"wash"]
["add","be","cause","define","encourage","feel","grab","haunt","increase",null,null,"learn","market","note","operate","pause",null,"realize","scold","tease","untidy",null,"waste"]
["address","beam","challenge","delay","end","fence","graduate","head","induce",null,null,"leave","marry","notice","order","pay",null,"reason","scorch","telephone","update",null,"watch"]
["administer","bear","change","delegate","endure","fetch","grate","heal","influence",null,null,"lecture","match","number","organize","peck",null,"receive","scrape","tell","upgrade",null,"water"]
["admire","beat","charge","delight","enforce","fight","grease","heap","inform",null,null,"lead","mate",null,"orient","pedal",null,"recognize","scratch","tempt","uphold",null,"wave"]
["admit","become","chart","deliver","engineer","file","greet","hear","initiate",null,null,"lend","matter",null,"originate","peel",null,"recommend","scream","terrify","upset",null,"wear"]
["adopt","beg","chase","demonstrate","enhance","fill","grin","heat","inject",null,null,"let","mean",null,"overcome","peep",null,"reconcile","screw","test","use",null,"weave"]
["advise","begin","cheat","depend","enjoy","film","grind","help","injure",null,null,"level","measure",null,"overdo","perceive",null,"record","scribble","thank","utilize",null,"wed"]
["afford","behave","check","describe","enlist","finalize","grip","hide","inlay",null,null,"license","meddle",null,"overdraw","perfect",null,"recruit","scrub","thaw",null,null,"weep"]
["agree","behold","cheer","desert","ensure","finance","groan","hit","innovate",null,null,"lick","mediate",null,"overflow","perform",null,"reduce","seal","think",null,null,"weigh"]
["alert","belong","chew","deserve","enter","find","grow","hold","input",null,null,"lie","meet",null,"overhear","permit",null,"refer","search","thrive",null,null,"welcome"]
["alight","bend","choke","design","entertain","fire","guarantee","hook","inspect",null,null,"lift","melt",null,"overtake","persuade",null,"reflect","secure","throw",null,null,"wend"]
["allow","beset","choose","destroy","escape","fit","guard","hop","inspire",null,null,"light","melt",null,"overthrow","phone",null,"refuse","see","thrust",null,null,"wet"]
["alter","bet","chop","detail","establish","fix","guess","hope","install",null,null,"lighten","memorize",null,"owe","photograph",null,"regret","seek","tick",null,null,"whine"]
["amuse","bid","claim","detect","estimate","flap","guide","hover","institute",null,null,"like","mend",null,"own","pick",null,"regulate","select","tickle",null,null,"whip"]
["analyze","bind","clap","determine","evaluate","flash",null,"hug","instruct",null,null,"list","mentor",null,null,"pilot",null,"rehabilitate","sell","tie",null,null,"whirl"]
["announce","bite","clarify","develop","examine","flee",null,"hum","insure",null,null,"listen","milk",null,null,"pinch",null,"reign","send","time",null,null,"whisper"]
["annoy","bleach","classify","devise","exceed","fling",null,"hunt","integrate",null,null,"live","mine",null,null,"pine",null,"reinforce","sense","tip",null,null,"whistle"]
["answer","bleed","clean","diagnose","excite","float",null,"hurry","intend",null,null,"load","mislead",null,null,"pinpoint",null,"reject","separate","tire",null,null,"win"]
["anticipate","bless","clear","dig","excuse","flood",null,"hurt","intensify",null,null,"locate","miss",null,null,"pioneer",null,"rejoice","serve","touch",null,null,"wind"]
["apologize","blind","cling","direct","execute","flow",null,"hypothesize","interest",null,null,"lock","misspell",null,null,"place",null,"relate","service","tour",null,null,"wink"]
["appear","blink","clip","disagree","exercise","flower",null,null,"interfere",null,null,"log","mistake",null,null,"plan",null,"relax","set","tow",null,null,"wipe"]
["applaud","blot","close","disappear","exhibit","fly",null,null,"interlay",null,null,"long","misunderstand",null,null,"plant",null,"release","settle","trace",null,null,"wish"]
["apply","blow","clothe","disapprove","exist","fold",null,null,"interpret",null,null,"look","mix",null,null,"play",null,"rely","sew","trade",null,null,"withdraw"]
["appoint","blush","coach","disarm","expand","follow",null,null,"interrupt",null,null,"lose","moan",null,null,"plead",null,"remain","shade","train",null,null,"withhold"]
["appraise","boast","coil","discover","expect","fool",null,null,"interview",null,null,"love","model",null,null,"please",null,"remember","shake","transcribe",null,null,"withstand"]
["appreciate","boil","collect","dislike","expedite","forbid",null,null,"introduce",null,null,null,"modify",null,null,"plug",null,"remind","shape","transfer",null,null,"wobble"]
["approve","bolt","color","dispense","experiment","force",null,null,"invent",null,null,null,"monitor",null,null,"point",null,"remove","share","transform",null,null,"wonder"]
["arbitrate","bomb","comb","display","explain","forecast",null,null,"inventory",null,null,null,"moor",null,null,"poke",null,"render","shave","translate",null,null,"work"]
["argue","book","come","disprove","explode","forego",null,null,"investigate",null,null,null,"motivate",null,null,"polish",null,"reorganize","shear","transport",null,null,"worry"]
["arise","bore","command","dissect","express","foresee",null,null,"invite",null,null,null,"mourn",null,null,"pop",null,"repair","shed","trap",null,null,"wrap"]
["arrange","borrow","communicate","distribute","extend","foretell",null,null,"irritate",null,null,null,"move",null,null,"possess",null,"repeat","shelter","travel",null,null,"wreck"]
["arrest","bounce","compare","dive","extract","forget",null,null,"itch",null,null,null,"mow",null,null,"post",null,"replace","shine","tread",null,null,"wrestle"]
["arrive","bow","compete","divert",null,"forgive",null,null,null,null,null,null,"muddle",null,null,"pour",null,"reply","shiver","treat",null,null,"wriggle"]
["ascertain","box","compile","divide",null,"form",null,null,null,null,null,null,"mug",null,null,"practice",null,"report","shock","tremble",null,null,"wring"]
["ask","brake","complain","do",null,"formulate",null,null,null,null,null,null,"multiply",null,null,"prais",null,"represent","shoe","trick",null,null,"write"]
["assemble","branch","complete","double",null,"forsake",null,null,null,null,null,null,"murder",null,null,"pray",null,"reproduce","shoot","trip"]
["assess","break","compose","doubt",null,"frame",null,null,null,null,null,null,null,null,null,"preach",null,"request","shop","trot"]
["assist","breathe","compute","draft",null,"freeze",null,null,null,null,null,null,null,null,null,"precede",null,"rescue","show","trouble"]
["assure","breed","conceive","drag",null,"frighten",null,null,null,null,null,null,null,null,null,"predict",null,"research","shrink","troubleshoot"]
["attach","brief","concentrate","drain",null,"fry",null,null,null,null,null,null,null,null,null,"prefer",null,"resolve","shrug","trust"]
["attack","bring","conceptualize","dramatize",null,null,null,null,null,null,null,null,null,null,null,"prepare",null,"respond","shut","try"]
["attain","broadcast","concern","draw",null,null,null,null,null,null,null,null,null,null,null,"prescribe",null,"restore","sigh","tug"]
["attempt","bruise","conclude","dream",null,null,null,null,null,null,null,null,null,null,null,"present",null,"restructure","sign","tumble"]
["attend","brush","conduct","dress",null,null,null,null,null,null,null,null,null,null,null,"preserve",null,"retire","signal","turn"]
["attract","bubble","confess","drink",null,null,null,null,null,null,null,null,null,null,null,"preset",null,"retrieve","simplify","tutor"]
["audit","budget","confront","drip",null,null,null,null,null,null,null,null,null,null,null,"preside",null,"return","sin","twist"]
["avoid","build","confuse","drive",null,null,null,null,null,null,null,null,null,null,null,"press",null,"review","sing","type"]
["awake","bump","connect","drop",null,null,null,null,null,null,null,null,null,null,null,"pretend",null,"revise","sink"]
[null,"burn","conserve","drown",null,null,null,null,null,null,null,null,null,null,null,"prevent",null,"rhyme","sip"]
[null,"burst","consider","drum",null,null,null,null,null,null,null,null,null,null,null,"prick",null,"rid","sit"]
[null,"bury","consist","dry",null,null,null,null,null,null,null,null,null,null,null,"print",null,"ride","sketch"]
[null,"bust","consolidate","dust",null,null,null,null,null,null,null,null,null,null,null,"process",null,"ring","ski"]
[null,"buy","construct","dwell",null,null,null,null,null,null,null,null,null,null,null,"procure",null,"rinse","skip"]
[null,"buzz","consult",null,null,null,null,null,null,null,null,null,null,null,null,"produce",null,"rise","slap"]
[null,null,"contain",null,null,null,null,null,null,null,null,null,null,null,null,"profess",null,"risk","slay"]
[null,null,"continue",null,null,null,null,null,null,null,null,null,null,null,null,"program",null,"rob","sleep"]
[null,null,"contract",null,null,null,null,null,null,null,null,null,null,null,null,"progress",null,"rock","slide"]
[null,null,"control",null,null,null,null,null,null,null,null,null,null,null,null,"project",null,"roll","sling"]
[null,null,"convert",null,null,null,null,null,null,null,null,null,null,null,null,"promise",null,"rot","slink"]
[null,null,"coordinate",null,null,null,null,null,null,null,null,null,null,null,null,"promote",null,"rub","slip"]
[null,null,"copy",null,null,null,null,null,null,null,null,null,null,null,null,"proofread",null,"ruin","slit"]
[null,null,"correct",null,null,null,null,null,null,null,null,null,null,null,null,"propose",null,"rule","slow"]
[null,null,"correlate",null,null,null,null,null,null,null,null,null,null,null,null,"protect",null,"run","smash"]
[null,null,"cost",null,null,null,null,null,null,null,null,null,null,null,null,"prove",null,"rush","smell"]
[null,null,"cough",null,null,null,null,null,null,null,null,null,null,null,null,"provide",null,null,"smile"]
[null,null,"counsel",null,null,null,null,null,null,null,null,null,null,null,null,"publicize",null,null,"smite"]
[null,null,"count",null,null,null,null,null,null,null,null,null,null,null,null,"pull",null,null,"smoke"]
[null,null,"cover",null,null,null,null,null,null,null,null,null,null,null,null,"pump",null,null,"snatch"]
[null,null,"crack",null,null,null,null,null,null,null,null,null,null,null,null,"punch",null,null,"sneak"]
[null,null,"crash",null,null,null,null,null,null,null,null,null,null,null,null,"puncture",null,null,"sneeze"]
[null,null,"crawl",null,null,null,null,null,null,null,null,null,null,null,null,"punish",null,null,"sniff"]
[null,null,"create",null,null,null,null,null,null,null,null,null,null,null,null,"purchase",null,null,"snore"]
[null,null,"creep",null,null,null,null,null,null,null,null,null,null,null,null,"push",null,null,"snow"]
[null,null,"critique",null,null,null,null,null,null,null,null,null,null,null,null,"put",null,null,"soak"]
[null,null,"cross",null,null,null,null,null,null,null,null,null,null,null,null,null,null,null,"solve"]
[null,null,"crush",null,null,null,null,null,null,null,null,null,null,null,null,null,null,null,"soothe"]
[null,null,"cry",null,null,null,null,null,null,null,null,null,null,null,null,null,null,null,"soothsay"]
[null,null,"cure",null,null,null,null,null,null,null,null,null,null,null,null,null,null,null,"sort"]
[null,null,"curl",null,null,null,null,null,null,null,null,null,null,null,null,null,null,null,"sound"]
[null,null,"curve",null,null,null,null,null,null,null,null,null,null,null,null,null,null,null,"sow"]
[null,null,"cut",null,null,null,null,null,null,null,null,null,null,null,null,null,null,null,"spare"]
[null,null,"cycle",null,null,null,null,null,null,null,null,null,null,null,null,null,null,null,"spark"]
["A2",null,null,null,null,null,null,null,null,null,null,null,null,null,null,null,null,null,"sparkle"]
["A56",null,null,null,null,null,null,null,null,null,null,null,null,null,null,null,null,null,"speak"]
[null,null,null,null,null,null,null,null,null,null,null,null,null,null,null,null,null,null,"specify"]
[null,null,null,null,null,null,null,null,null,null,null,null,null,null,null,null,null,null,"speed"]
[null,null,null,null,null,null,null,null,null,null,null,null,null,null,null,null,null,null,"spell"]
[null,null,null,null,null,null,null,null,null,null,null,null,null,null,null,null,null,null,"spend"]
[null,null,null,null,null,null,null,null,null,null,null,null,null,null,null,null,null,null,"spill"]
[null,null,null,null,null,null,null,null,null,null,null,null,null,null,null,null,null,null,"spin"]
[null,null,null,null,null,null,null,null,null,null,null,null,null,null,null,null,null,null,"spit"]
[null,null,null,null,null,null,null,null,null,null,null,null,null,null,null,null,null,null,"split"]
[null,null,null,null,null,null,null,null,null,null,null,null,null,null,null,null,null,null,"spoil"]
[null,null,null,null,null,null,null,null,null,null,null,null,null,null,null,null,null,null,"spot"]
[null,null,null,null,null,null,null,null,null,null,null,null,null,null,null,null,null,null,"spray"]
[null,null,null,null,null,null,null,null,null,null,null,null,null,null,null,null,null,null,"spread"]
[null,null,null,null,null,null,null,null,null,null,null,null,null,null,null,null,null,null,"spring"]
[null,null,null,null,null,null,null,null,null,null,null,null,null,null,null,null,null,null,"sprout"]
[null,null,null,null,null,null,null,null,null,null,null,null,null,null,null,null,null,null,"squash"]
[null,null,null,null,null,null,null,null,null,null,null,null,null,null,null,null,null,null,"squeak"]
[null,null,null,null,null,null,null,null,null,null,null,null,null,null,null,null,null,null,"squeal"]
[null,null,null,null,null,null,null,null,null,null,null,null,null,null,null,null,null,null,"squeeze"]
[null,null,null,null,null,null,null,null,null,null,null,null,null,null,null,null,null,null,"stain"]
[null,null,null,null,null,null,null,null,null,null,null,null,null,null,null,null,null,null,"stamp"]
[null,null,null,null,null,null,null,null,null,null,null,null,null,null,null,null,null,null,"stand"]
[null,null,null,null,null,null,null,null,null,null,null,null,null,null,null,null,null,null,"stare"]
[null,null,null,null,null,null,null,null,null,null,null,null,null,null,null,null,null,null,"start"]
[null,null,null,null,null,null,null,null,null,null,null,null,null,null,null,null,null,null,"stay"]
[null,null,null,null,null,null,null,null,null,null,null,null,null,null,null,null,null,null,"steal"]
[null,null,null,null,null,null,null,null,null,null,null,null,null,null,null,null,null,null,"steer"]
[null,null,null,null,null,null,null,null,null,null,null,null,null,null,null,null,null,null,"step"]
[null,null,null,null,null,null,null,null,null,null,null,null,null,null,null,null,null,null,"stick"]
[null,null,null,null,null,null,null,null,null,null,null,null,null,null,null,null,null,null,"stimulate"]
[null,null,null,null,null,null,null,null,null,null,null,null,null,null,null,null,null,null,"sting"]
[null,null,null,null,null,null,null,null,null,null,null,null,null,null,null,null,null,null,"stink"]
[null,null,null,null,null,null,null,null,null,null,null,null,null,null,null,null,null,null,"stir"]
[null,null,null,null,null,null,null,null,null,null,null,null,null,null,null,null,null,null,"stitch"]
[null,null,null,null,null,null,null,null,null,null,null,null,null,null,null,null,null,null,"stop"]
[null,null,null,null,null,null,null,null,null,null,null,null,null,null,null,null,null,null,"store"]
[null,null,null,null,null,null,null,null,null,null,null,null,null,null,null,null,null,null,"strap"]
[null,null,null,null,null,null,null,null,null,null,null,null,null,null,null,null,null,null,"streamline"]
[null,null,null,null,null,null,null,null,null,null,null,null,null,null,null,null,null,null,"strengthen"]
[null,null,null,null,null,null,null,null,null,null,null,null,null,null,null,null,null,null,"stretch"]
[null,null,null,null,null,null,null,null,null,null,null,null,null,null,null,null,null,null,"stride"]
[null,null,null,null,null,null,null,null,null,null,null,null,null,null,null,null,null,null,"strike"]
[null,null,null,null,null,null,null,null,null,null,null,null,null,null,null,null,null,null,"string"]
[null,null,null,null,null,null,null,null,null,null,null,null,null,null,null,null,null,null,"strip"]
[null,null,null,null,null,null,null,null,null,null,null,null,null,null,null,null,null,null,"strive"]
[null,null,null,null,null,null,null,null,null,null,null,null,null,null,null,null,null,null,"stroke"]
[null,null,null,null,null,null,null,null,null,null,null,null,null,null,null,null,null,null,"structure"]
[null,null,null,null,null,null,null,null,null,null,null,null,null,null,null,null,null,null,"study"]
[null,null,null,null,null,null,null,null,null,null,null,null,null,null,null,null,null,null,"stuff"]
[null,null,null,null,null,null,null,null,null,null,null,null,null,null,null,null,null,null,"sublet"]
[null,null,null,null,null,null,null,null,null,null,null,null,null,null,null,null,null,null,"subtract"]
[null,null,null,null,null,null,null,null,null,null,null,null,null,null,null,null,null,null,"succeed"]
[null,null,null,null,null,null,null,null,null,null,null,null,null,null,null,null,null,null,"suck"]
[null,null,null,null,null,null,null,null,null,null,null,null,null,null,null,null,null,null,"suffer"]
[null,null,null,null,null,null,null,null,null,null,null,null,null,null,null,null,null,null,"suggest"]
[null,null,null,null,null,null,null,null,null,null,null,null,null,null,null,null,null,null,"suit"]
[null,null,null,null,null,null,null,null,null,null,null,null,null,null,null,null,null,null,"summarize"]
[null,null,null,null,null,null,null,null,null,null,null,null,null,null,null,null,null,null,"supervise"]
[null,null,null,null,null,null,null,null,null,null,null,null,null,null,null,null,null,null,"supply"]
[null,null,null,null,null,null,null,null,null,null,null,null,null,null,null,null,null,null,"support"]
[null,null,null,null,null,null,null,null,null,null,null,null,null,null,null,null,null,null,"suppose"]
[null,null,null,null,null,null,null,null,null,null,null,null,null,null,null,null,null,null,"surprise"]
[null,null,null,null,null,null,null,null,null,null,null,null,null,null,null,null,null,null,"surround"]
[null,null,null,null,null,null,null,null,null,null,null,null,null,null,null,null,null,null,"suspect"]
[null,null,null,null,null,null,null,null,null,null,null,null,null,null,null,null,null,null,"suspend"]
[null,null,null,null,null,null,null,null,null,null,null,null,null,null,null,null,null,null,"swear"]
[null,null,null,null,null,null,null,null,null,null,null,null,null,null,null,null,null,null,"sweat"]
[null,null,null,null,null,null,null,null,null,null,null,null,null,null,null,null,null,null,"sweep"]
[null,null,null,null,null,null,null,null,null,null,null,null,null,null,null,null,null,null,"swell"]
[null,null,null,null,null,null,null,null,null,null,null,null,null,null,null,null,null,null,"swim"]
[null,null,null,null,null,null,null,null,null,null,null,null,null,null,null,null,null,null,"swing"]
[null,null,null,null,null,null,null,null,null,null,null,null,null,null,null,null,null,null,"switch"]
[null,null,null,null,null,null,null,null,null,null,null,null,null,null,null,null,null,null,"symbolize"]
[null,null,null,null,null,null,null,null,null,null,null,null,null,null,null,null,null,null,"synthesize"]
[null,null,null,null,null,null,null,null,null,null,null,null,null,null,null,null,null,null,"systemize"]

{"sheet":"Prepositions","index":5,"n_rows":46,"n_cols":2,"rows_kept":46,"cut":false,"hidden":false,"merged":[]}
["Basic Prepositions","Advanced Prepositions"]
[{"$f":"COUNTIF(A3:A50,\"<>\"&B3)","v":44},{"$f":"COUNTIF(B3:B36,\"<>\"&B37)","v":0}]
["at"]
["by"]
["down"]
["for"]
["from"]
["into"]
["like"]
["near"]
["next to"]
["off"]
["onto"]
["out of"]
["over"]
["past"]
["to"]
["up"]
["with"]
["aboard"]
["about"]
["above"]
["across"]
["after"]
["against"]
["along"]
["around"]
["before"]
["behind"]
["below"]
["beneath"]
["beside"]
["between"]
["beyond"]
["inside"]
["onto"]
["opposite"]
["outside"]
["round"]
["through"]
["toward"]
["under"]
["underneath"]
["until"]
["upon"]
["without"]

{"sheet":"Pronouns","index":6,"n_rows":8,"n_cols":2,"rows_kept":8,"cut":false,"hidden":false,"merged":[]}
["Subject Pronouns","Object Pronouns"]
["I","me"]
["you","you"]
["he","him"]
["she","her"]
["it","it"]
["they","them"]
["we","us"]

{"sheet":"Lists","index":7,"n_rows":25,"n_cols":5,"rows_kept":25,"cut":false,"hidden":false,"merged":[]}
["Any","Any",null,"Any"]
["Kindergarten","A","Basic Prepositions","Appearance Adjectives","Subject Pronouns"]
["1st Grade","B","Advanced Prepositions","Color Adjectives","Object Pronouns"]
["2nd Grade","C",null,"Condition Adjectives"]
["3rd Grade","D",null,"Feelings (Bad) Adjectives"]
["4th Grade","E",null,"Feelings (Good) Adjectives"]
["5th Grade","F",null,"Shape Adjectives"]
[null,"G",null,"Size Adjectives"]
[null,"H",null,"Sound Adjectives"]
[null,"I",null,"Time Adjectives"]
[null,"J",null,"Taste/Touch Adjectives"]
[null,"K",null,"Touch Adjectives"]
[null,"L"]
[null,"M"]
[null,"N"]
[null,"O"]
[null,"P"]
[null,"Q"]
[null,"R"]
[null,"S"]
[null,"T"]
[null,"U"]
[null,"V"]
[null,"W"]
[null,"X - Y - Z"]

{"sheet":"Adverbs","index":8,"n_rows":188,"n_cols":1,"rows_kept":188,"cut":false,"hidden":false,"merged":[]}
["Adverbs"]
[{"$f":"COUNTIF(A3:A189,\"<>\"&A189)","v":186}]
["abnormally"]
["absentmindedly"]
["accidentally"]
["acidly"]
["actually"]
["adventurously"]
["afterwards"]
["almost"]
["always"]
["angrily"]
["annually"]
["anxiously"]
["arrogantly"]
["awkwardly"]
["badly"]
["bashfully"]
["beautifully"]
["bitterly"]
["bleakly"]
["blindly"]
["blissfully"]
["boastfully"]
["boldly"]
["bravely"]
["briefly"]
["brightly"]
["briskly"]
["broadly"]
["busily "]
["calmly"]
["carefully"]
["carelessly"]
["cautiously"]
["certainly"]
["cheerfully"]
["clearly"]
["cleverly"]
["closely"]
["coaxingly"]
["colorfully"]
["commonly"]
["continually"]
["coolly"]
["correctly"]
["courageously"]
["crossly"]
["cruelly "]
["curiously "]
["daily"]
["daintily"]
["dearly"]
["deceivingly"]
["delightfully"]
["deeply"]
["defiantly"]
["deliberately"]
["delightfully"]
["diligently"]
["dimly"]
["doubtfully"]
["dreamily "]
["easily"]
["elegantly"]
["energetically"]
["enormously"]
["enthusiastically"]
["equally"]
["especially"]
["even"]
["evenly"]
["eventually"]
["exactly"]
["excitedly"]
["extremely  "]
["fatally"]
["ferociously"]
["fervently"]
["fiercely"]
["fondly"]
["foolishly"]
["fortunately"]
["frankly"]
["frantically"]
["generally"]
["generously"]
["gently"]
["gladly"]
["gleefully"]
["gracefully"]
["gratefully"]
["greatly"]
["greedily "]
["happily"]
["hastily"]
["healthily"]
["heavily"]
["helpfully"]
["helplessly"]
["highly"]
["honestly"]
["immediately"]
["innocently"]
["inquisitively"]
["instantly"]
["intensely"]
["intently"]
["interestingly"]
["inwardly"]
["irritably "]
["jealously"]
["joshingly"]
["joyfully"]
["joyously"]
["jovially"]
["jubilantly"]
["judgementally"]
["justly "]
["keenly"]
["kiddingly"]
["kindheartedly"]
["kindly"]
["lightly"]
["likely"]
["limply"]
["lively"]
["loftily"]
["longingly"]
["loosely"]
["lovingly"]
["loudly"]
["madly"]
["majestically"]
["meaningfully"]
["mechanically"]
["merrily"]
["miserably"]
["mockingly"]
["naturally"]
["nearly"]
["neatly"]
["needily"]
["nervously"]
["obediently"]
["obnoxiously"]
["oddly"]
["offensively"]
["officially"]
["painfully"]
["partially"]
["patiently"]
["perfectly"]
["physically"]
["playfully"]
["politely"]
["poorly"]
["positively"]
["quickly"]
["quietly"]
["quirkily"]
["rapidly"]
["rarely"]
["readily"]
["really"]
["reassuringly"]
["recklessly"]
["regularly"]
["reluctantly"]
["selfishly"]
["separately"]
["seriously"]
["shakily"]
["sharply"]
["sheepishly"]
["shrilly"]
["shyly"]
["silently"]
["sleepily"]
["slowly"]
["smoothly"]
["softly"]
["solemnly"]
["terribly"]
["thankfully"]
["thoroughly"]
["thoughtfully"]
["tightly"]

{"sheet":"Fillers","index":9,"n_rows":16,"n_cols":1,"rows_kept":16,"cut":false,"hidden":false,"merged":[]}
["Fillers"]
[{"$f":"COUNTIF(A3:A20,\"<>\"&A21)","v":14}]
["can"]
["cannot"]
["will"]
["will not"]
["likes to"]
["should"]
["could"]
["could not"]
["should not"]
["wants to"]
["has to"]
["hopes to"]
["would"]
["would not"]

{"sheet":"Plural","index":10,"n_rows":92,"n_cols":6,"rows_kept":92,"cut":false,"hidden":false,"merged":[]}
["Kindergarten","1st Grade","2nd Grade","3rd Grade","4th Grade","5th Grade"]
[{"$f":"COUNTIF(A3:A94,\"<>\"&A95)","v":42},{"$f":"COUNTIF(B3:B95,\"<>\"&B96)","v":90},{"$f":"COUNTIF(C3:C95,\"<>\"&C96)","v":90},{"$f":"COUNTIF(D3:D95,\"<>\"&D96)","v":62},{"$f":"COUNTIF(E3:E90,\"<>\"&E91)","v":78},{"$f":"COUNTIF(F3:F88,\"<>\"&F89)","v":79}]
["balls","apples","alarms","actors","advices","acoustics"]
["bats","arms","animals","airplanes","angers","actions"]
["beds","bananas","aunts","airports","answers","activities"]
["books","bikes","baits","armies","apples","afternoons"]
["boys","birds","balloons","baseballs","arithmetics","afterthoughts"]
["buns","books","baths","cows","badges","apparels"]
["moms","chins","beads","birthdays","baskets","appliances"]
["cakes","clams","beams","boys","basketballs","beginners"]
["caps","classes","beans","brushes","battles","beliefs"]
["cars","clovers","bedrooms","bushes","beasts","bombs"]
["cats","clubs","boots","butters","beetles","borders"]
["cows","corns","breads","casts","beggars","boundries"]
["cubs","crayons","bricks","caves","brains","breakfasts"]
["cups","crows","brothers","cents","branches","cabbages"]
["dads","crowns","camps","cherries","bubbles","cables"]
["days","crowds","chickens","cherries","buckets","calculators"]
["dogs","cribs","children","cobwebs","cacti","calendars"]
["dolls","desks","crooks","coils","cannons","captions"]
["dusts","dimes","deer","crackers","cows","carpenters"]
["fans","dirts","docks","dinners","cellars","cemeteries"]
["feet","dresses","doctors","eggnogs","cellars","channels"]
["girls","fangs","downtowns","elbows","clothes","circles"]
["guns","fields","drums","faces","coaches","creators"]
["halls","flags","dusts","firemen","coasts","creatures"]
["hats","flowers","eyes","flavors","crates","educations"]
["hens","fogs","families","gates","creams","faucets"]
["jars","games","fathers","gloves","daughters","feathers"]
["kites","heats","fights","glues","donkeys","frictions"]
["men","hills","foods","goldfishes","drugs","fruits"]
["maps","homes","foods","geese","earthquakes","fuels"]
["moms","horns","frogs","grains","feasts","galleys"]
["pans","hoses","geese","hairs","fifths","guides"]
["pets","jokes","grades","haircuts","fingers","guitars"]
["pies","juices","grandfathers","hobbies","flocks","hearts"]
["pigs","kites","grandmothers","holidays","frames","ideas"]
["pots","lakes","grapes","hots","furnitures","kittens"]
["rats","maids","grasses","jellyfishes","geese","laborers"]
["sons","masks","hooks","ladybugs","ghosts","languages"]
["suns","mices","horses","mailboxes","giraffes","lawyers"]
["toes","milks","jails","numbers","governors","linens"]
["tubs","mints","jams","oatmeals","honeys","lockets"]
["vans","meals","kisses","pails","hopes","lumbers"]
[null,"meats","kittens","pancakes","hydrants","magics"]
[null,"moons","lights","pears","icicles","ministers"]
[null,"mothers","loaves","pests","incomes","mittens"]
[null,"mornings","locks","popcorns","islands","moneys"]
[null,"names","lunches","queens","jeans","mountains"]
[null,"nests","lunchrooms","quicksands","judges","musics"]
[null,"noses","meals","quiets","laces","partners"]
[null,"pears","mothers","quilts","lamps","passengers"]
[null,"pens","notebooks","rainstorms","marbles","pickles"]
[null,"pencils","owls","scarecrows","months","pictures"]
[null,"plants","pails","scarves","oceans","plantations"]
[null,"rains","parents","streams","patches","plastics"]
[null,"rivers","parks","streets","planes","pleasures"]
[null,"roads","plots","sugars","playgrounds","pockets"]
[null,"rocks","rabbits","thrones","poisons","policemen"]
[null,"rooms","rakes","toothpastes","riddles","railways"]
[null,"roses","robins","twigs","rifles","recesses"]
[null,"seeds","sacks","volleyballs","scales","rewards"]
[null,"shapes","sails","woods","seashores","routes"]
[null,"shoes","scales","wrenches","sheets","scenes"]
[null,"shops","seas",null,"sidewalks","scents"]
[null,"shows","sisters",null,"skates","squirrels"]
[null,"sinks","soaps",null,"slaves","strangers"]
[null,"snails","songs",null,"stages","suits"]
[null,"snakes","sparks",null,"stations","sweaters"]
[null,"snows","spaces",null,"thrills","tempers"]
[null,"sodas","spoons",null,"throats","territories"]
[null,"sofas","spots",null,"thrones","textures"]
[null,"stars","spies",null,"titles","threads"]
[null,"steps","summers",null,"toothbrushs","treatments"]
[null,"stews","tigers",null,"turkeys","veils"]
[null,"stoves","toads",null,"vacations","veins"]
[null,"straws","towns",null,"vegetables","volcanos"]
[null,"strings","trails",null,"visitors","weathers"]
[null,"summers","tramps",null,"voyages","wrens"]
[null,"swings","trays",null,"years","wrists"]
[null,"tables","tricks",null,null,"writers"]
[null,"tanks","trips"]
[null,"teams","uncles"]
[null,"tents","vases"]
[null,"tests","winters"]
[null,"toes","waters"]
[null,"trees","weeks"]
[null,"vests","wheels"]
[null,"waters","wishes"]
[null,"wings","wools"]
[null,"winters","yards"]
[null,"women","zebras"]

{"sheet":"Libs","index":11,"n_rows":54,"n_cols":4,"rows_kept":54,"cut":false,"hidden":false,"merged":[]}
["Dragons","love letter",null,{"$f":"COUNTIF(C4:C49,\"=adj\")","v":0}]
[]
["The ","Dearest "]
["blue","\n"," was quite the "]
[" Dragon is the ","I lay awake in the ","itchy "]
["obnoxiousest","bed","cow.  "]
[" Dragon of all. It has "," thinking of you, your ",{"$f":"PROPER(D7)","v":"He"},"he"]
["itchy ","clumsy"," liked to "]
["dogs"," smile, and our ","accelerate"]
[", and a ","sun"," every "]
["dog"," in the ","fan "]
[" shaped like a ","jar","he"]
["doll",".  ","  saw.  One day, the "]
[". It loves to eat ","colorfully","embarrassed"]
["buns",", I recall our meeting, oh how did my heart "," villiage "]
[", although it will feast on nearly anything. It is ","appreciate","pig"]
["angry"," with "," popped out of the "]
[" and ","bed","dog"]
["mysterious"," when I first saw you? How "," and yelled, \" "]
[". You must be ","bewildered"]
["lazy"," you looked in that ",", did you think you could "]
[" around it, or you may end up as it`s meal!","yellow ","admit"]
[null,"bed"," me and get away with it?\"  "]
[null," and those two "]
[null,"angry "," was so "]
[null,"buns","embarrassed"]
[null," on your "," that "]
[null,"ball","he "]
[null,null,"loudly"]
[null,"!  Your eyes are like deep pools of "," ran "]
[null,"son","along"]
[null,", warmed in the moonlight. Your cheeks are as rosy as "," a large "]
[null,"caps","rat"]
[null," . Your lips are like succulent "," and was never seen again."]
[null,"cubs"]
[null,". Your hair is "]
[null,"orange"]
[null," like a "]
[null,"map"]
[null," on a summer`s day."]
[null,"I can`t wait to "]
[null,"attain"]
[null," with you again. Write soon.\n"]
[]
[null,"commonly"]
[null,", Your Friend"]
[]
[]
[]
[]
[]
[]
[{"$f":"A3&A4&A5&A6&A7&A8&A9&A10&A11&A12&A13&A14&A15&A16&A17&A18&A19&A20&A21&A22","v":"The blue Dragon is the obnoxiousest Dragon of all. It has itchy dogs, and a dog shaped like a doll. It loves to eat buns, although it will feast on nearly anything. It is angry and mysterious. You must be lazy around it, or you may end up as it`s meal!"},{"$f":"B3&B4&B5&B6&B7&B8&B9&B10&B11&B12&B13&B14&B15&B16&B17&B18&B19&B20&B21&B22&B23&B24&B25&B26&B27&B28&B29&B30&B31&B32&B33&B34&B35&B36&B37&B38&B39&B40&B41&B42&B43&B44&B45&B46","v":"Dearest \nI lay awake in the bed thinking of you, your clumsy smile, and our sun in the jar.  colorfully, I recall our meeting, oh how did my heart appreciate with bed when I first saw you? How bewildered you looked in that yellow bed and those two angry buns on your ball!  Your eyes are like deep pools of son, warmed in the moonlight. Your cheeks are as rosy as caps . Your lips are like succulent cubs. Your hair is orange like a map on a summer`s day.I can`t wait to attain with you again. Write soon.\ncommonly, Your Friend"},{"$f":"C3&C4&C5&C6&C7&C8&C9&C10&C11&C12&C13&C14&C15&C16&C17&C18&C19&C20&C21&C22&C23&C24&C25&C26&C27&C28&C29&C30&C31&C32&C33&C34","v":" was quite the itchy cow.  He liked to accelerate every fan he  saw.  One day, the embarrassed villiage pig popped out of the dog and yelled, \" , did you think you could admit me and get away with it?\"   was so embarrassed that he loudly ran along a large rat and was never seen again."}]
[" was quite the itchy cow.  He liked to accelerate every fan he  saw.  One day, the embarrassed villiage pig popped out of the dog and yelled, \" , did you think you could admit me and get away with it?\"   was so embarrassed that he loudly ran along a large rat and was never seen again."]